fUSD/lending_fUSD_20250219
["ID","MTS","AMOUNT","RATE_DAILY","PERIOD"]
[353676627,1739987458678,-782.68,0.00011452,2]
[353676629,1739987458688,-914.52,0.00011452,2]
[353676632,1739987458699,-500.0,0.00011452,2]
[353676634,1739987458711,-1011.45,0.00011452,2]
[353676636,1739987458722,-1072.02,0.00011452,2]
[353676638,1739987458737,-500.0,0.00011452,2]
[353676641,1739987458749,-705.13,0.00011452,2]
[353676643,1739987458760,-1437.68,0.00011452,2]
[353676645,1739987458770,-500.0,0.00011452,2]
[353676647,1739987458780,-795.0,0.00011452,2]
[353676649,1739987458790,-644.23,0.00011452,2]
[353676651,1739987458801,-1015.54,0.00011452,2]
[353676654,1739987458814,-1039.88,0.00011452,2]
[353676656,1739987458827,-500.0,0.00011452,2]
[353676658,1739987458839,-866.14,0.00011452,2]
[353676660,1739987458850,-1003.06,0.00011452,2]
[353676662,1739987458861,-530.87,0.00011452,2]
[353676664,1739987458871,-1740.48,0.00011452,2]
[353676666,1739987458882,-500.0,0.00011452,2]
[353676668,1739987458892,-998.3,0.00011452,2]
[353676671,1739987458905,-500.0,0.00011452,2]
[353676673,1739987458917,-3066.13,0.00011452,2]
[353676675,1739987458928,-512.06,0.00011452,2]
[353676677,1739987458940,-1550.39,0.00011452,2]
[353676680,1739987458951,-500.0,0.00011452,2]
[353676682,1739987458962,-461.83049187,0.00011452,2]
[353676684,1739987458973,-574.37,0.00011452,2]
[353676686,1739987458984,-604.77294542,0.00011532,2]
[353676688,1739987458995,-503.08,0.00011533,2]
[353676690,1739987459006,-932.0,0.00011533,2]
[353676692,1739987459017,-1035.21,0.00011533,2]
[353676695,1739987459028,-753.25,0.00011533,2]
[353676697,1739987459039,-1074.53,0.00011533,2]
[353676699,1739987459050,-1188.97,0.00011533,2]
[353676701,1739987459062,-500.0,0.00011533,2]
[353676703,1739987459073,-744.25,0.00011533,2]
[353676705,1739987459083,-990.17,0.00011533,2]
[353676708,1739987459094,-1736.87,0.00011533,2]
[353676710,1739987459106,-2335.41,0.00011533,2]
[353676712,1739987459118,-1527.63,0.00011533,2]
[353676714,1739987459128,-1000.0,0.00011533,2]
[353676716,1739987459139,-1821.09,0.00011533,2]
[353676718,1739987459151,-1496.47,0.00011533,2]
[353676720,1739987459161,-1091.01,0.00011533,2]
[353676723,1739987459173,-926.03,0.00011533,2]
[353676725,1739987459183,-2442.27,0.00011533,2]
[353676727,1739987459194,-500.0,0.00011533,2]
[353676729,1739987459205,-1071.28,0.00011533,2]
[353676731,1739987459217,-788.39,0.00011533,2]
[353676733,1739987459228,-1230.45,0.00011533,2]
[353676736,1739987459239,-1012.93,0.00011533,2]
[353676738,1739987459250,-947.02,0.00011533,2]
[353676740,1739987459261,-1322.03,0.00011533,2]
[353676742,1739987459273,-1118.2,0.00011533,2]
[353676745,1739987459287,-1110.66,0.00011533,2]
[353676747,1739987459298,-500.0,0.00011533,2]
[353676749,1739987459309,-1462.21,0.00011533,2]
[353676751,1739987459320,-500.0,0.00011533,2]
[353676753,1739987459331,-694.37,0.00011533,2]
[353676755,1739987459342,-928.72,0.00011533,2]
[353676757,1739987459353,-500.0,0.00011533,2]
[353676759,1739987459364,-1600.63,0.00011533,2]
[353676761,1739987459375,-1114.04,0.00011533,2]
[353676764,1739987459386,-515.12,0.00011533,2]
[353676766,1739987459398,-1097.96,0.00011533,2]
[353676768,1739987459408,-4182.8,0.00011533,2]
[353676770,1739987459419,-874.82,0.00011533,2]
[353676772,1739987459430,-500.0,0.00011533,2]
[353676774,1739987459441,-614.0,0.00011533,2]
[353676777,1739987459452,-1336.31,0.00011533,2]
[353676779,1739987459462,-1114.28,0.00011533,2]
[353676781,1739987459473,-500.0,0.00011533,2]
[353676783,1739987459484,-1022.6,0.00011533,2]
[353676785,1739987459494,-1345.04,0.00011533,2]
[353676787,1739987459506,-500.0,0.00011533,2]
[353676789,1739987459516,-155.548872,0.00011533,2]
[353676791,1739987459527,-1414.34,0.00011533,2]
[353676794,1739987459538,-593.78,0.00011533,2]
[353676796,1739987459548,-1153.26,0.00011533,2]
[353676798,1739987459559,-701.17,0.00011533,2]
[353676800,1739987459570,-500.0,0.00011534,2]
[353676802,1739987459580,-500.0,0.00011534,2]
[353676804,1739987459591,-500.0,0.00011534,2]
[353676806,1739987459602,-500.0,0.00011534,2]
[353676808,1739987459612,-500.0,0.00011534,2]
[353676811,1739987459624,-813.48,0.00011534,2]
[353676813,1739987459635,-500.0,0.00011534,2]
[353676815,1739987459645,-722.46,0.00011534,2]
[353676817,1739987459656,-1116.18,0.00011534,2]
[353676819,1739987459666,-500.0,0.00011534,2]
[353676821,1739987459677,-1001.38,0.00011534,2]
[353676823,1739987459688,-772.23,0.00011534,2]
[353676825,1739987459698,-1129.31,0.00011534,2]
[353676827,1739987459708,-894.25,0.00011534,2]
[353676830,1739987459719,-500.0,0.00011534,2]
[353676832,1739987459730,-1066.3,0.00011534,2]
[353676834,1739987459741,-500.0,0.00011534,2]
[353676836,1739987459752,-1207.63,0.00011534,2]
[353676838,1739987459763,-500.0,0.00011534,2]
[353676840,1739987459775,-523.8,0.00011534,2]
[353676842,1739987459786,-1475.98,0.00011534,2]
[353676845,1739987459797,-707.46,0.00011534,2]
[353676847,1739987459807,-973.42,0.00011534,2]
[353676848,1739987459818,-1708.57,0.00011534,2]
[353676849,1739987459829,-758.41,0.00011534,2]
[353676850,1739987459840,-1055.55,0.00011534,2]
[353676851,1739987459851,-943.78,0.00011534,2]
[353676852,1739987459862,-500.0,0.00011534,2]
[353676853,1739987459874,-793.53,0.00011534,2]
[353676854,1739987459884,-829.08,0.00011534,2]
[353676856,1739987459895,-500.0,0.00011534,2]
[353676859,1739987459906,-628.54,0.00011534,2]
[353676861,1739987459920,-673.29,0.00011534,2]
[353676863,1739987459931,-585.45,0.00011534,2]
[353676865,1739987459941,-569.52,0.00011534,2]
[353676867,1739987459952,-500.0,0.00011534,2]
[353676869,1739987459964,-551.33,0.00011534,2]
[353676871,1739987459975,-1188.83,0.00011534,2]
[353676874,1739987459987,-500.0,0.00011534,2]
[353676876,1739987459997,-788.62,0.00011534,2]
[353676878,1739987460008,-1971.73,0.00011534,2]
[353676880,1739987460020,-672.32,0.00011534,2]
[353676882,1739987460031,-500.0,0.00011534,2]
[353676884,1739987460043,-500.0,0.00011534,2]
[353676886,1739987460055,-808.29,0.00011534,2]
[353676888,1739987460067,-500.0,0.00011534,2]
[353676891,1739987460079,-720.08,0.00011534,2]
[353676893,1739987460090,-566.48,0.00011534,2]
[353676895,1739987460102,-840.91,0.00011534,2]
[353676897,1739987460113,-517.52,0.00011534,2]
[353676899,1739987460124,-662.15,0.00011534,2]
[353676901,1739987460135,-1035.82,0.00011534,2]
[353676903,1739987460147,-1483.43,0.00011534,2]
[353676905,1739987460158,-1154.98,0.00011534,2]
[353676908,1739987460169,-811.37,0.00011534,2]
[353676910,1739987460180,-896.95,0.00011534,2]
[353676912,1739987460192,-1939.26,0.00011534,2]
[353676914,1739987460204,-954.7,0.00011534,2]
[353676916,1739987460216,-1057.93,0.00011534,2]
[353676918,1739987460227,-1081.88,0.00011534,2]
[353676920,1739987460239,-893.96,0.00011534,2]
[353676922,1739987460250,-1776.36,0.00011534,2]
[353676924,1739987460261,-1231.15,0.00011534,2]
[353676926,1739987460272,-500.0,0.00011534,2]
[353676928,1739987460287,-1082.49,0.00011534,2]
[353676931,1739987460298,-500.0,0.00011534,2]
[353676933,1739987460309,-1842.35,0.00011534,2]
[353676935,1739987460320,-881.03,0.00011534,2]
[353676937,1739987460331,-711.42,0.00011534,2]
[353676939,1739987460343,-819.54,0.00011534,2]
[353676941,1739987460354,-1127.42,0.00011534,2]
[353676943,1739987460366,-744.32,0.00011534,2]
[353676945,1739987460377,-904.15,0.00011534,2]
[353676947,1739987460388,-500.0,0.00011534,2]
[353676949,1739987460399,-500.0,0.00011534,2]
[353676951,1739987460411,-1246.08,0.00011534,2]
[353676953,1739987460422,-1227.92,0.00011534,2]
[353676955,1739987460432,-500.0,0.00011534,2]
[353676957,1739987460444,-500.0,0.00011534,2]
[353676959,1739987460454,-664.94,0.00011534,2]
[353676961,1739987460465,-1901.67,0.00011534,2]
[353676963,1739987460476,-500.0,0.00011534,2]
[353676966,1739987460487,-500.0,0.00011534,2]
[353676968,1739987460498,-1108.43,0.00011534,2]
[353676970,1739987460509,-500.0,0.00011534,2]
[353676972,1739987460520,-1901.78,0.00011534,2]
[353676974,1739987460531,-500.0,0.00011534,2]
[353676976,1739987460541,-1290.72,0.00011534,2]
[353676978,1739987460552,-2211.03,0.00011534,2]
[353676980,1739987460563,-500.0,0.00011534,2]
[353676982,1739987460574,-812.42,0.00011534,2]
[353676984,1739987460584,-4591.13,0.00011534,2]
[353676986,1739987460594,-500.0,0.00011534,2]
[353676989,1739987460605,-500.0,0.00011534,2]
[353676991,1739987460617,-1566.76,0.00011534,2]
[353676993,1739987460628,-955.62,0.00011534,2]
[353676995,1739987460639,-500.0,0.00011534,2]
[353676997,1739987460650,-500.0,0.00011534,2]
[353676999,1739987460660,-1307.0,0.00011534,2]
[353677002,1739987460671,-500.0,0.00011534,2]
[353677004,1739987460681,-1646.83,0.00011534,2]
[353677006,1739987460692,-500.0,0.00011534,2]
[353677008,1739987460702,-882.64,0.00011534,2]
[353677010,1739987460712,-513.95,0.00011534,2]
[353677012,1739987460722,-1684.83,0.00011534,2]
[353677014,1739987460733,-999.95,0.00011534,2]
[353677016,1739987460744,-1014.56,0.00011534,2]
[353677018,1739987460755,-500.0,0.00011534,2]
[353677021,1739987460765,-500.0,0.00011534,2]
[353677022,1739987460776,-737.79,0.00011534,2]
[353677023,1739987460787,-500.0,0.00011534,2]
[353677024,1739987460798,-1140.37,0.00011534,2]
[353677025,1739987460811,-1541.55,0.00011534,2]
[353677026,1739987460822,-993.33,0.00011534,2]
[353677027,1739987460833,-500.0,0.00011534,2]
[353677028,1739987460844,-752.42,0.00011534,2]
[353677029,1739987460855,-500.0,0.00011534,2]
[353677030,1739987460869,-500.0,0.00011534,2]
[353677031,1739987460880,-992.83,0.00011534,2]
[353677032,1739987460892,-1423.73,0.00011534,2]
[353677033,1739987460903,-1072.75,0.00011534,2]
[353677036,1739987460914,-991.44,0.00011534,2]
[353677037,1739987460925,-500.0,0.00011534,2]
[353677040,1739987460936,-734.87,0.00011534,2]
[353677042,1739987460946,-506.11,0.00011534,2]
[353677044,1739987460957,-660.15,0.00011534,2]
[353677046,1739987460967,-500.0,0.00011534,2]
[353677048,1739987460978,-1154.52,0.00011534,2]
[353677050,1739987460989,-500.0,0.00011534,2]
[353677052,1739987461000,-705.06,0.00011534,2]
[353677055,1739987461011,-840.96,0.00011534,2]
[353677057,1739987461022,-1357.84,0.00011534,2]
[353677059,1739987461032,-639.37640721,0.00011534,2]
[353677061,1739987461043,-728.08,0.00011534,2]
[353677063,1739987461054,-892.41,0.00011534,2]
[353677065,1739987461066,-1054.42,0.00011534,2]
[353677067,1739987461078,-1568.95,0.00011534,2]
[353677069,1739987461095,-671.12,0.00011534,2]
[353677070,1739987461120,-782.68,0.00011534,2]
[353677071,1739987461131,-914.52,0.00011534,2]
[353677072,1739987461143,-500.0,0.00011534,2]
[353677073,1739987461154,-1011.45,0.00011534,2]
[353677074,1739987461165,-1072.02,0.00011534,2]
[353677075,1739987461176,-500.0,0.00011534,2]
[353677076,1739987461187,-705.13,0.00011534,2]
[353677077,1739987461197,-1437.68,0.00011534,2]
[353677078,1739987461208,-500.0,0.00011534,2]
[353677079,1739987461218,-795.0,0.00011534,2]
[353677080,1739987461229,-1015.54,0.00011534,2]
[353677081,1739987461240,-644.23,0.00011534,2]
[353677082,1739987461251,-1039.88,0.00011534,2]
[353677083,1739987461261,-500.0,0.00011534,2]
[353677085,1739987461273,-866.14,0.00011534,2]
[353677087,1739987461287,-1003.06,0.00011534,2]
[353677089,1739987461298,-530.87,0.00011534,2]
[353677091,1739987461308,-1740.48,0.00011534,2]
[353677093,1739987461319,-500.0,0.00011534,2]
[353677095,1739987461329,-998.3,0.00011534,2]
[353677097,1739987461340,-500.0,0.00011534,2]
[353677099,1739987461351,-3066.13,0.00011534,2]
[353677101,1739987461363,-512.06,0.00011534,2]
[353677103,1739987461374,-1550.39,0.00011534,2]
[353677105,1739987461384,-500.0,0.00011534,2]
[353677106,1739987461394,-574.37,0.00011534,2]
[353677107,1739987461405,-477.0,0.00011539,3]
[353677108,1739987461415,-286.1444404,0.00011544,2]
[353677109,1739987461425,-150.0,0.00011584,2]
[353677146,1739987461817,-255.0,0.00011584,2]
[353677149,1739987461840,-503.08,0.00011615,2]
[353677152,1739987461864,-1035.21,0.00011615,2]
[353677154,1739987461874,-261.68,0.00011615,2]
[353677157,1739987461883,-500.0,0.00011616,2]
[353677159,1739987461893,-500.0,0.00011616,2]
[353677161,1739987461903,-276.45,0.00011616,2]
[353677163,1739987461912,-500.0,0.00011616,2]
[353677165,1739987461922,-500.0,0.00011616,2]
[353677167,1739987461930,-500.0,0.00011616,2]
[353677169,1739987461940,-813.48,0.00011616,2]
[353677170,1739987461950,-500.0,0.00011616,2]
[353677172,1739987461959,-722.46,0.00011616,2]
[353677175,1739987461969,-1116.18,0.00011616,2]
[353677176,1739987461979,-500.0,0.00011616,2]
[353677178,1739987461988,-1001.38,0.00011616,2]
[353677181,1739987461998,-772.23,0.00011616,2]
[353677182,1739987462008,-1129.31,0.00011616,2]
[353677185,1739987462017,-894.25,0.00011616,2]
[353677187,1739987462027,-500.0,0.00011616,2]
[353677189,1739987462036,-1066.3,0.00011616,2]
[353677190,1739987462046,-500.0,0.00011616,2]
[353677192,1739987462057,-1207.63,0.00011616,2]
[353677194,1739987462066,-500.0,0.00011616,2]
[353677196,1739987462075,-523.8,0.00011616,2]
[353677198,1739987462085,-1475.98,0.00011616,2]
[353677200,1739987462095,-707.46,0.00011616,2]
[353677202,1739987462104,-973.42,0.00011616,2]
[353677204,1739987462115,-1708.57,0.00011616,2]
[353677206,1739987462124,-758.41,0.00011616,2]
[353677208,1739987462135,-1055.55,0.00011616,2]
[353677210,1739987462144,-943.78,0.00011616,2]
[353677212,1739987462154,-500.0,0.00011616,2]
[353677214,1739987462164,-793.53,0.00011616,2]
[353677216,1739987462174,-829.08,0.00011616,2]
[353677218,1739987462183,-500.0,0.00011616,2]
[353677220,1739987462193,-628.54,0.00011616,2]
[353677222,1739987462203,-673.29,0.00011616,2]
[353677224,1739987462213,-585.45,0.00011616,2]
[353677226,1739987462223,-569.52,0.00011616,2]
[353677228,1739987462232,-500.0,0.00011616,2]
[353677230,1739987462242,-551.33,0.00011616,2]
[353677233,1739987462252,-1188.83,0.00011616,2]
[353677234,1739987462262,-500.0,0.00011616,2]
[353677236,1739987462272,-788.62,0.00011616,2]
[353677238,1739987462286,-1971.73,0.00011616,2]
[353677240,1739987462296,-672.32,0.00011616,2]
[353677242,1739987462306,-500.0,0.00011616,2]
[353677244,1739987462317,-517.6307655,0.00011616,2]
[353677246,1739987462327,-808.29,0.00011616,2]
[353677248,1739987462337,-500.0,0.00011616,2]
[353677250,1739987462347,-720.08,0.00011616,2]
[353677253,1739987462358,-566.48,0.00011616,2]
[353677254,1739987462370,-932.0,0.00011616,2]
[353677257,1739987462380,-840.91,0.00011616,2]
[353677259,1739987462390,-517.52,0.00011616,2]
[353677261,1739987462399,-662.15,0.00011616,2]
[353677263,1739987462409,-1035.82,0.00011616,2]
[353677264,1739987462418,-1483.43,0.00011616,2]
[353677266,1739987462428,-1154.98,0.00011616,2]
[353677269,1739987462437,-811.37,0.00011616,2]
[353677271,1739987462447,-896.95,0.00011616,2]
[353677273,1739987462457,-1939.26,0.00011616,2]
[353677275,1739987462466,-954.7,0.00011616,2]
[353677277,1739987462476,-753.25,0.00011616,2]
[353677279,1739987462485,-1057.93,0.00011616,2]
[353677280,1739987462495,-1081.88,0.00011616,2]
[353677282,1739987462505,-893.96,0.00011616,2]
[353677284,1739987462514,-1776.36,0.00011616,2]
[353677286,1739987462523,-1231.15,0.00011616,2]
[353677288,1739987462533,-1082.49,0.00011616,2]
[353677290,1739987462542,-1074.53,0.00011616,2]
[353677292,1739987462552,-500.0,0.00011616,2]
[353677294,1739987462562,-1842.35,0.00011616,2]
[353677296,1739987462571,-500.0,0.00011616,2]
[353677298,1739987462580,-1188.97,0.00011616,2]
[353677300,1739987462590,-881.03,0.00011616,2]
[353677302,1739987462599,-711.42,0.00011616,2]
[353677304,1739987462609,-819.54,0.00011616,2]
[353677306,1739987462620,-1127.42,0.00011616,2]
[353677308,1739987462630,-744.32,0.00011616,2]
[353677310,1739987462639,-500.0,0.00011616,2]
[353677312,1739987462649,-904.15,0.00011616,2]
[353677314,1739987462659,-500.0,0.00011616,2]
[353677316,1739987462669,-500.0,0.00011616,2]
[353677318,1739987462678,-744.25,0.00011616,2]
[353677320,1739987462688,-1246.08,0.00011616,2]
[353677322,1739987462698,-1227.92,0.00011616,2]
[353677324,1739987462707,-500.0,0.00011616,2]
[353677326,1739987462717,-664.94,0.00011616,2]
[353677328,1739987462727,-1901.67,0.00011616,2]
[353677330,1739987462737,-500.0,0.00011616,2]
[353677332,1739987462747,-500.0,0.00011616,2]
[353677334,1739987462756,-1108.43,0.00011616,2]
[353677336,1739987462767,-990.17,0.00011616,2]
[353677338,1739987462776,-500.0,0.00011616,2]
[353677340,1739987462786,-1901.78,0.00011616,2]
[353677342,1739987462796,-500.0,0.00011616,2]
[353677344,1739987462805,-1290.72,0.00011616,2]
[353677346,1739987462815,-2211.03,0.00011616,2]
[353677348,1739987462825,-1736.87,0.00011616,2]
[353677350,1739987462835,-2335.41,0.00011616,2]
[353677352,1739987462845,-500.0,0.00011616,2]
[353677354,1739987462854,-812.42,0.00011616,2]
[353677356,1739987462866,-1527.63,0.00011616,2]
[353677358,1739987462876,-500.0,0.00011616,2]
[353677360,1739987462885,-4591.13,0.00011616,2]
[353677361,1739987462895,-500.0,0.00011616,2]
[353677362,1739987462905,-1000.0,0.00011616,2]
[353677363,1739987462915,-1566.76,0.00011616,2]
[353677364,1739987462924,-1821.09,0.00011616,2]
[353677365,1739987462934,-955.62,0.00011616,2]
[353677366,1739987462944,-1496.47,0.00011616,2]
[353677367,1739987462953,-500.0,0.00011616,2]
[353677369,1739987462963,-500.0,0.00011616,2]
[353677371,1739987462972,-1307.0,0.00011616,2]
[353677373,1739987462982,-1091.01,0.00011616,2]
[353677375,1739987462991,-500.0,0.00011616,2]
[353677377,1739987463001,-1646.83,0.00011616,2]
[353677379,1739987463011,-500.0,0.00011616,2]
[353677381,1739987463021,-882.64,0.00011616,2]
[353677383,1739987463031,-926.03,0.00011616,2]
[353677385,1739987463041,-2442.27,0.00011616,2]
[353677387,1739987463052,-513.95,0.00011616,2]
[353677389,1739987463062,-500.0,0.00011616,2]
[353677391,1739987463072,-999.95,0.00011616,2]
[353677393,1739987463082,-1684.83,0.00011616,2]
[353677395,1739987463092,-1014.56,0.00011616,2]
[353677397,1739987463102,-1071.28,0.00011616,2]
[353677399,1739987463112,-1230.45,0.00011616,2]
[353677401,1739987463122,-500.0,0.00011616,2]
[353677403,1739987463132,-788.39,0.00011616,2]
[353677405,1739987463142,-500.0,0.00011616,2]
[353677407,1739987463152,-737.79,0.00011616,2]
[353677409,1739987463162,-500.0,0.00011616,2]
[353677411,1739987463173,-1140.37,0.00011616,2]
[353677413,1739987463183,-1012.93,0.00011616,2]
[353677415,1739987463193,-1541.55,0.00011616,2]
[353677416,1739987463203,-993.33,0.00011616,2]
[353677418,1739987463212,-500.0,0.00011616,2]
[353677420,1739987463222,-947.02,0.00011616,2]
[353677422,1739987463233,-752.42,0.00011616,2]
[353677425,1739987463243,-1322.03,0.00011616,2]
[353677426,1739987463253,-500.0,0.00011616,2]
[353677428,1739987463263,-500.0,0.00011616,2]
[353677431,1739987463276,-1118.2,0.00011616,2]
[353677433,1739987463288,-992.83,0.00011616,2]
[353677435,1739987463298,-1423.73,0.00011616,2]
[353677437,1739987463307,-1072.75,0.00011616,2]
[353677438,1739987463318,-1110.66,0.00011616,2]
[353677441,1739987463328,-500.0,0.00011616,2]
[353677443,1739987463338,-991.44,0.00011616,2]
[353677444,1739987463348,-500.0,0.00011616,2]
[353677446,1739987463358,-734.87,0.00011616,2]
[353677448,1739987463370,-1462.21,0.00011616,2]
[353677451,1739987463380,-506.11,0.00011616,2]
[353677453,1739987463390,-500.0,0.00011616,2]
[353677455,1739987463400,-660.15,0.00011616,2]
[353677457,1739987463409,-500.0,0.00011616,2]
[353677459,1739987463419,-1154.52,0.00011616,2]
[353677461,1739987463429,-500.0,0.00011616,2]
[353677463,1739987463439,-705.06,0.00011616,2]
[353677465,1739987463449,-694.37,0.00011616,2]
[353677467,1739987463458,-928.72,0.00011616,2]
[353677469,1739987463468,-840.96,0.00011616,2]
[353677471,1739987463478,-1357.84,0.00011616,2]
[353677473,1739987463488,-500.0,0.00011616,2]
[353677475,1739987463498,-1600.63,0.00011616,2]
[353677477,1739987463507,-728.08,0.00011616,2]
[353677479,1739987463517,-1114.04,0.00011616,2]
[353677481,1739987463527,-892.41,0.00011616,2]
[353677483,1739987463536,-1054.42,0.00011616,2]
[353677485,1739987463546,-1568.95,0.00011616,2]
[353677487,1739987463555,-671.12,0.00011616,2]
[353677489,1739987463565,-782.68,0.00011616,2]
[353677491,1739987463575,-515.12,0.00011616,2]
[353677493,1739987463585,-914.52,0.00011616,2]
[353677495,1739987463594,-500.0,0.00011616,2]
[353677497,1739987463604,-1011.45,0.00011616,2]
[353677499,1739987463614,-1072.02,0.00011616,2]
[353677501,1739987463624,-1097.96,0.00011616,2]
[353677503,1739987463633,-4182.8,0.00011616,2]
[353677505,1739987463643,-500.0,0.00011616,2]
[353677507,1739987463653,-705.13,0.00011616,2]
[353677509,1739987463662,-1437.68,0.00011616,2]
[353677511,1739987463672,-500.0,0.00011616,2]
[353677513,1739987463682,-795.0,0.00011616,2]
[353677515,1739987463691,-874.82,0.00011616,2]
[353677517,1739987463701,-1015.54,0.00011616,2]
[353677519,1739987463711,-644.23,0.00011616,2]
[353677521,1739987463721,-1039.88,0.00011616,2]
[353677523,1739987463731,-500.0,0.00011616,2]
[353677525,1739987463741,-614.0,0.00011616,2]
[353677527,1739987463750,-1336.31,0.00011616,2]
[353677529,1739987463760,-500.0,0.00011616,2]
[353677531,1739987463770,-866.14,0.00011616,2]
[353677533,1739987463781,-1003.06,0.00011616,2]
[353677535,1739987463790,-1114.28,0.00011616,2]
[353677537,1739987463800,-530.87,0.00011616,2]
[353677539,1739987463810,-500.0,0.00011616,2]
[353677541,1739987463820,-1022.6,0.00011616,2]
[353677543,1739987463830,-1345.04,0.00011616,2]
[353677545,1739987463839,-1740.48,0.00011616,2]
[353677547,1739987463849,-500.0,0.00011616,2]
[353677549,1739987463859,-500.0,0.00011616,2]
[353677551,1739987463869,-998.3,0.00011616,2]
[353677553,1739987463880,-500.0,0.00011616,2]
[353677555,1739987463890,-1414.34,0.00011616,2]
[353677557,1739987463899,-3066.13,0.00011616,2]
[353677559,1739987463910,-512.06,0.00011616,2]
[353677562,1739987463920,-593.78,0.00011616,2]
[353677564,1739987463930,-1153.26,0.00011616,2]
[353677565,1739987463940,-1550.39,0.00011616,2]
[353677567,1739987463950,-701.17,0.00011616,2]
[353677570,1739987463959,-500.0,0.00011616,2]
[353677572,1739987463970,-574.37,0.00011616,2]
[353677574,1739987463980,-500.0,0.00011698,2]
[353677576,1739987463990,-500.0,0.00011698,2]
[353677578,1739987463999,-500.0,0.00011698,2]
[353677579,1739987464009,-500.0,0.00011698,2]
[353677581,1739987464018,-500.0,0.00011698,2]
[353677583,1739987464028,-813.48,0.00011698,2]
[353677585,1739987464038,-500.0,0.00011698,2]
[353677587,1739987464049,-722.46,0.00011698,2]
[353677589,1739987464059,-1116.18,0.00011698,2]
[353677591,1739987464068,-500.0,0.00011698,2]
[353677593,1739987464078,-1001.38,0.00011698,2]
[353677595,1739987464088,-772.23,0.00011698,2]
[353677597,1739987464098,-1129.31,0.00011698,2]
[353677600,1739987464107,-894.25,0.00011698,2]
[353677602,1739987464118,-500.0,0.00011698,2]
[353677604,1739987464129,-1066.3,0.00011698,2]
[353677606,1739987464139,-500.0,0.00011698,2]
[353677608,1739987464148,-1207.63,0.00011698,2]
[353677609,1739987464158,-500.0,0.00011698,2]
[353677611,1739987464167,-523.8,0.00011698,2]
[353677614,1739987464177,-1475.98,0.00011698,2]
[353677616,1739987464187,-707.46,0.00011698,2]
[353677618,1739987464197,-973.42,0.00011698,2]
[353677620,1739987464206,-1708.57,0.00011698,2]
[353677622,1739987464215,-758.41,0.00011698,2]
[353677623,1739987464225,-1055.55,0.00011698,2]
[353677626,1739987464235,-943.78,0.00011698,2]
[353677628,1739987464246,-500.0,0.00011698,2]
[353677630,1739987464256,-793.53,0.00011698,2]
[353677632,1739987464266,-829.08,0.00011698,2]
[353677634,1739987464278,-500.0,0.00011698,2]
[353677636,1739987464291,-628.54,0.00011698,2]
[353677637,1739987464301,-673.29,0.00011698,2]
[353677638,1739987464311,-585.45,0.00011698,2]
[353677639,1739987464321,-569.52,0.00011698,2]
[353677640,1739987464331,-435.72760428,0.00011698,2]
[353677641,1739987464341,-551.33,0.00011698,2]